fUST/lending_fUST_20250906
["ID","MTS","AMOUNT","RATE_DAILY","PERIOD"]
[383810525,1757124640728,-480.0,0.00013698,2]
[383810526,1757124640738,-482.44371443,0.00013698,2]
[383810527,1757124640747,-480.0,0.00013698,2]
[383810528,1757124640757,-480.0,0.00013698,2]
[383810529,1757124640766,-480.0,0.00013698,2]
[383810530,1757124640776,-480.0,0.00013698,2]
[383810531,1757124640786,-480.0,0.00013698,2]
[383810532,1757124640795,-480.85427317,0.00013698,2]
[383810533,1757124640805,-480.0,0.00013698,2]
[383810534,1757124640814,-480.53628975,0.00013698,2]
[383810535,1757124640824,-480.0,0.00013698,2]
[383810536,1757124640833,-483.562134,0.00013698,2]
[383810537,1757124640843,-480.41407927,0.00013698,2]
[383810538,1757124640853,-480.0,0.00013698,2]
[383810539,1757124640863,-480.0,0.00013698,2]
[383810540,1757124640873,-480.0,0.00013698,2]
[383810541,1757124640882,-484.28648407,0.00013698,2]
[383810542,1757124640893,-482.07559973,0.00013698,2]
[383810543,1757124640903,-480.0,0.00013698,2]
[383810544,1757124640913,-480.0,0.00013698,2]
[383810545,1757124640923,-480.0,0.00013698,2]
[383810546,1757124640932,-480.0,0.00013698,2]
[383810547,1757124640942,-480.0,0.00013698,2]
[383810548,1757124640951,-482.29867955,0.00013698,2]
[383810549,1757124640961,-480.0,0.00013698,2]
[383810550,1757124640970,-480.0,0.00013698,2]
[383810551,1757124640980,-480.89467717,0.00013698,2]
[383810552,1757124640989,-480.0,0.00013698,2]
[383810553,1757124640998,-480.0,0.00013698,2]
[383810554,1757124641008,-481.40289672,0.00013698,2]
[383810555,1757124641018,-480.0,0.00013698,2]
[383810556,1757124641028,-480.0,0.00013698,2]
[383810557,1757124641038,-480.0,0.00013698,2]
[383810558,1757124641047,-480.0,0.00013698,2]
[383810559,1757124641057,-480.0,0.00013698,2]
[383810560,1757124641067,-500.0,0.00013698,2]
[383810561,1757124641077,-480.0,0.00013698,2]
[383810562,1757124641086,-500.0,0.00013698,2]
[383810563,1757124641095,-499.41652911,0.00013698,2]
[383810564,1757124641105,-484.25985846,0.00013698,2]
[383810565,1757124641114,-481.69220318,0.00013698,2]
[383810566,1757124641124,-480.0,0.00013698,2]
[383810567,1757124641137,-480.0,0.00013698,2]
[383810568,1757124641146,-480.65552356,0.00013698,2]
[383810569,1757124641156,-310.21856233,0.00013698,2]
[383810570,1757124641165,-308.68060701,0.00013698,2]
[383810571,1757124641175,-624.86480605,0.00013698,2]
[383810572,1757124641184,-480.0,0.00013698,2]
[383810573,1757124641193,-482.3154425,0.00013698,2]
[383810574,1757124641203,-480.0,0.00013698,2]
[383810575,1757124641212,-614.99994609,0.00013698,2]
[383810576,1757124641222,-480.0,0.00013698,2]
[383810577,1757124641231,-480.0,0.00013698,2]
[383810578,1757124641241,-480.0,0.00013698,2]
[383810579,1757124641251,-480.0,0.00013698,2]
[383810580,1757124641260,-480.0,0.00013698,2]
[383810581,1757124641269,-468.940004,0.00013698,2]
[383810582,1757124641279,-480.0,0.00013698,2]
[383810583,1757124641289,-480.0,0.00013698,2]
[383810584,1757124641299,-485.40510158,0.00013698,2]
[383810585,1757124641308,-481.81088021,0.00013698,2]
[383810586,1757124641318,-480.0,0.00013698,2]
[383810587,1757124641327,-484.60147916,0.00013698,2]
[383810588,1757124641337,-482.57121973,0.00013698,2]
[383810589,1757124641346,-480.0,0.00013698,2]
[383810590,1757124641356,-480.0,0.00013698,2]
[383810591,1757124641366,-482.96162122,0.00013698,2]
[383810592,1757124641375,-480.0,0.00013698,2]
[383810593,1757124641387,-1386.19,0.00013698,2]
[383810594,1757124641396,-151.913193,0.00013698,2]
[383810595,1757124641405,-480.0,0.00013698,2]
[383810596,1757124641415,-480.0,0.00013698,2]
[383810597,1757124641425,-480.0,0.00013698,2]
[383810598,1757124641435,-21405.55,0.00013698,2]
[383810599,1757124641445,-480.0,0.00013698,2]
[383810600,1757124641454,-480.0,0.00013698,2]
[383810601,1757124641463,-480.0,0.00013698,2]
[383810602,1757124641473,-567.54,0.00013698,2]
[383810603,1757124641483,-480.0,0.00013698,2]
[383810604,1757124641496,-480.0,0.00013698,2]
[383810605,1757124641506,-480.0,0.00013698,2]
[383810606,1757124641516,-481.35564458,0.00013698,2]
[383810607,1757124641525,-481.69619116,0.00013698,2]
[383810608,1757124641535,-483.86917493,0.00013698,2]
[383810609,1757124641545,-480.0,0.00013698,2]
[383810610,1757124641554,-532.47,0.00013698,2]
[383810611,1757124641565,-480.0,0.00013698,2]
[383810612,1757124641575,-480.0,0.00013698,2]
[383810613,1757124641585,-483.30786606,0.00013698,2]
[383810614,1757124641595,-480.0,0.00013698,2]
[383810615,1757124641605,-480.0,0.00013698,2]
[383810616,1757124641614,-481.77150462,0.00013698,2]
[383810617,1757124641624,-482.82715017,0.00013698,2]
[383810618,1757124641634,-481.12220358,0.00013698,2]
[383810619,1757124641645,-480.0,0.00013698,2]
[383810620,1757124641655,-283.10377152,0.00013698,2]
[383810621,1757124641665,-480.0,0.00013698,2]
[383810622,1757124641675,-486.56575335,0.00013698,2]
[383810623,1757124641684,-157.0,0.00013698,2]
[383810624,1757124641694,-480.0,0.00013698,2]
[383810625,1757124641704,-157.0,0.00013698,2]
[383810626,1757124641714,-481.85416646,0.00013698,2]
[383810627,1757124641723,-154.025601,0.00013698,2]
[383810628,1757124641733,-480.0,0.00013698,2]
[383810629,1757124641749,-480.0,0.00013698,2]
[383810630,1757124641763,-480.0,0.00013698,2]
[383810631,1757124641778,-480.0,0.00013698,2]
[383810632,1757124641791,-482.13815804,0.00013698,2]
[383810633,1757124641802,-480.0,0.00013698,2]
[383810634,1757124641815,-532.50948353,0.00013698,2]
[383810635,1757124641827,-822.54,0.00013698,2]
[383810636,1757124641840,-482.51789312,0.00013698,2]
[383810637,1757124641863,-480.0,0.00013698,2]
[383810638,1757124641882,-483.78245926,0.00013698,2]
[383810639,1757124641898,-480.0,0.00013698,2]
[383810640,1757124641913,-480.0,0.00013698,2]
[383810641,1757124641929,-174.51989052,0.00013698,2]
[383810642,1757124641945,-481.01109727,0.00013698,2]
[383810643,1757124641958,-480.0,0.00013698,2]
[383810644,1757124641971,-480.0,0.00013698,2]
[383810645,1757124641985,-480.0,0.00013698,2]
[383810646,1757124642004,-480.0,0.00013698,2]
[383810647,1757124642018,-485.62754349,0.00013698,2]
[383810648,1757124642032,-151.0,0.00013698,2]
[383810649,1757124642046,-480.0,0.00013698,2]
[383810650,1757124642059,-151.0,0.00013698,2]
[383810651,1757124642073,-151.0,0.00013698,2]
[383810652,1757124642084,-480.0,0.00013698,2]
[383810653,1757124642094,-480.0,0.00013698,2]
[383810654,1757124642107,-480.0,0.00013698,2]
[383810655,1757124642118,-507.18836732,0.00013698,2]
[383810656,1757124642131,-480.0,0.00013698,2]
[383810657,1757124642145,-480.0,0.00013698,2]
[383810658,1757124642160,-480.0,0.00013698,2]
[383810659,1757124642173,-480.0,0.00013698,2]
[383810660,1757124642186,-616.75356064,0.00013698,2]
[383810661,1757124642200,-480.0,0.00013698,2]
[383810662,1757124642215,-481.41064422,0.00013698,2]
[383810663,1757124642229,-480.0,0.00013698,2]
[383810664,1757124642241,-480.0,0.00013698,2]
[383810665,1757124642252,-480.0,0.00013698,2]
[383810666,1757124642263,-480.0,0.00013698,2]
[383810667,1757124642274,-480.0,0.00013698,2]
[383810668,1757124642286,-480.0,0.00013698,2]
[383810669,1757124642300,-480.0,0.00013698,2]
[383810670,1757124642314,-480.0,0.00013698,2]
[383810671,1757124642326,-480.0,0.00013698,2]
[383810672,1757124642337,-480.0,0.00013698,2]
[383810673,1757124642349,-464.56217576,0.00013698,2]
[383810674,1757124642361,-480.0,0.00013698,2]
[383810675,1757124642375,-576.47566029,0.00013698,2]
[383810676,1757124642388,-481.17898132,0.00013698,2]
[383810677,1757124642399,-480.0,0.00013698,2]
[383810678,1757124642411,-480.0,0.00013698,2]
[383810679,1757124642422,-480.0,0.00013698,2]
[383810680,1757124642434,-342.36382256,0.00013698,2]
[383810681,1757124642447,-500.69673719,0.00013698,2]
[383810682,1757124642459,-151.60632,0.00013698,2]
[383810683,1757124642472,-480.0,0.00013698,2]
[383810684,1757124642484,-151.481648,0.00013698,2]
[383810685,1757124642499,-480.0,0.00013698,2]
[383810686,1757124642512,-480.99791776,0.00013698,2]
[383810687,1757124642524,-524.69330108,0.00013698,2]
[383810688,1757124642536,-480.0,0.00013698,2]
[383810690,1757124642548,-480.0,0.00013698,2]
[383810691,1757124642560,-480.72933949,0.00013698,2]
[383810692,1757124642573,-480.0,0.00013698,2]
[383810693,1757124642585,-480.0,0.00013698,2]
[383810694,1757124642597,-294.791901,0.00013698,2]
[383810695,1757124642612,-480.0,0.00013698,2]
[383810696,1757124642625,-480.0,0.00013698,2]
[383810697,1757124642641,-480.42486326,0.00013698,2]
[383810698,1757124642654,-480.0,0.00013698,2]
[383810699,1757124642667,-480.0,0.00013698,2]
[383810700,1757124642680,-482.79903465,0.00013698,2]
[383810701,1757124642692,-481.4073224,0.00013698,2]
[383810702,1757124642705,-480.0,0.00013698,2]
[383810703,1757124642719,-376.68838568,0.00013698,2]
[383810704,1757124642732,-480.0,0.00013698,2]
[383810705,1757124642746,-480.0,0.00013698,2]
[383810706,1757124642758,-504.6705001,0.00013698,2]
[383810707,1757124642771,-480.0,0.00013698,2]
[383810708,1757124642783,-480.0,0.00013698,2]
[383810709,1757124642795,-480.0,0.00013698,2]
[383810710,1757124642806,-480.0,0.00013698,2]
[383810711,1757124642818,-480.0,0.00013698,2]
[383810712,1757124642830,-481.74430506,0.00013698,2]
[383810713,1757124642843,-480.0,0.00013698,2]
[383810714,1757124642855,-480.0,0.00013698,2]
[383810715,1757124642867,-482.2036957,0.00013698,2]
[383810716,1757124642879,-544.27,0.00013698,2]
[383810717,1757124642891,-480.0,0.00013698,2]
[383810718,1757124642903,-482.26761071,0.00013698,2]
[383810719,1757124642914,-480.0,0.00013698,2]
[383810720,1757124642926,-481.23277381,0.00013698,2]
[383810721,1757124642937,-480.0,0.00013698,2]
[383810722,1757124642950,-482.07745301,0.00013698,2]
[383810724,1757124642962,-480.0,0.00013698,2]
[383810725,1757124642975,-480.0,0.00013698,2]
[383810726,1757124642986,-480.0,0.00013698,2]
[383810727,1757124642997,-480.0,0.00013698,2]
[383810728,1757124643009,-480.0,0.00013698,2]
[383810729,1757124643020,-4482.09,0.00013698,2]
[383810730,1757124643035,-480.0,0.00013698,2]
[383810731,1757124643047,-480.0,0.00013698,2]
[383810732,1757124643059,-480.0,0.00013698,2]
[383810733,1757124643070,-480.0,0.00013698,2]
[383810734,1757124643082,-481.37905651,0.00013698,2]
[383810735,1757124643095,-480.0,0.00013698,2]
[383810736,1757124643108,-480.0,0.00013698,2]
[383810737,1757124643119,-167.88869049,0.00013698,2]
[383810738,1757124643131,-157.0,0.00013698,2]
[383810739,1757124643144,-482.24769831,0.00013698,2]
[383810740,1757124643155,-481.35796312,0.00013698,2]
[383810741,1757124643167,-500.0,0.00013698,2]
[383810742,1757124643179,-480.0,0.00013698,2]
[383810743,1757124643190,-480.0,0.00013698,2]
[383810744,1757124643201,-480.0,0.00013698,2]
[383810745,1757124643213,-480.0,0.00013698,2]
[383810746,1757124643225,-500.0,0.00013698,2]
[383810747,1757124643237,-480.0,0.00013698,2]
[383810748,1757124643248,-348.60868708,0.00013698,2]
[383810749,1757124643258,-500.0,0.00013698,2]
[383810750,1757124643433,-500.0,0.00013698,2]
[383810751,1757124643445,-500.0,0.00013698,2]
[383810752,1757124643455,-500.0,0.00013698,2]
[383810753,1757124643466,-500.0,0.00013698,2]
[383810754,1757124643475,-500.0,0.00013698,2]
[383810755,1757124643485,-482.43682915,0.00013698,2]
[383810756,1757124643499,-500.0,0.00013698,2]
[383810757,1757124643509,-500.0,0.00013698,2]
[383810758,1757124643518,-500.0,0.00013698,2]
[383810759,1757124643529,-481.70201413,0.00013698,2]
[383810760,1757124643540,-481.73494056,0.00013698,2]
[383810761,1757124643550,-500.0,0.00013698,2]
[383810762,1757124643560,-500.0,0.00013698,2]
[383810763,1757124643570,-500.0,0.00013698,2]
[383810764,1757124643580,-500.0,0.00013698,2]
[383810765,1757124643590,-480.0,0.00013698,2]
[383810766,1757124643600,-500.0,0.00013698,2]
[383810767,1757124643610,-500.0,0.00013698,2]
[383810768,1757124643620,-480.0,0.00013698,2]
[383810769,1757124643630,-480.0,0.00013698,2]
[383810770,1757124643641,-480.0,0.00013698,2]
[383810771,1757124643651,-480.0,0.00013698,2]
[383810772,1757124643661,-480.0,0.00013698,2]
[383810773,1757124643671,-480.0,0.00013698,2]
[383810774,1757124643681,-151.0,0.00013698,2]
[383810775,1757124643690,-155.019658,0.00013698,2]
[383810776,1757124643700,-4317.63,0.00013698,2]
[383810777,1757124643710,-484.10674718,0.00013698,2]
[383810778,1757124643719,-481.12848882,0.00013698,2]
[383810779,1757124643729,-480.0,0.00013698,2]
[383810780,1757124643739,-480.0,0.00013698,2]
[383810781,1757124643748,-478.35228034,0.00013698,2]
[383810782,1757124643759,-1000.0,0.00013698,2]
[383810783,1757124643768,-482.09215496,0.00013698,2]
[383810784,1757124643778,-480.0,0.00013698,2]
[383810785,1757124643787,-574.55,0.00013698,2]
[383810786,1757124643797,-480.0,0.00013698,2]
[383810787,1757124643806,-480.0,0.00013698,2]
[383810788,1757124643816,-481.88411313,0.00013698,2]
[383810789,1757124643827,-480.0,0.00013698,2]
[383810790,1757124643837,-480.0,0.00013698,2]
[383810791,1757124643847,-481.34344322,0.00013698,2]
[383810792,1757124643856,-480.0,0.00013698,2]
[383810793,1757124643866,-480.0,0.00013698,2]
[383810794,1757124643875,-480.0,0.00013698,2]
[383810795,1757124643884,-480.0,0.00013698,2]
[383810796,1757124643895,-480.0,0.00013698,2]
[383810797,1757124643904,-480.0,0.00013698,2]
[383810798,1757124643914,-480.0,0.00013698,2]
[383810799,1757124643925,-480.0,0.00013698,2]
[383810800,1757124643934,-480.0,0.00013698,2]
[383810801,1757124643944,-480.0,0.00013698,2]
[383810802,1757124643954,-480.0,0.00013698,2]
[383810803,1757124643963,-741.51,0.00013698,2]
[383810804,1757124643973,-480.0,0.00013698,2]
[383810805,1757124643983,-480.0,0.00013698,2]
[383810806,1757124643992,-480.0,0.00013698,2]
[383810807,1757124644002,-480.0,0.00013698,2]
[383810808,1757124644012,-480.0,0.00013698,2]
[383810809,1757124644022,-828.83,0.00013698,2]
[383810810,1757124644032,-481.65114171,0.00013698,2]
[383810811,1757124644042,-480.0,0.00013698,2]
[383810812,1757124644053,-480.47,0.00013698,2]
[383810813,1757124644063,-480.0,0.00013698,2]
[383810814,1757124644073,-682.09,0.00013698,2]
[383810815,1757124644083,-480.0,0.00013698,2]
[383810816,1757124644093,-153.007493,0.00013698,2]
[383810817,1757124644104,-480.0,0.00013698,2]
[383810818,1757124644113,-480.0,0.00013698,2]
[383810819,1757124644123,-480.8328394,0.00013698,2]
[383810820,1757124644132,-1241.85,0.00013698,2]
[383810821,1757124644143,-480.0,0.00013698,2]
[383810822,1757124644152,-500.0,0.00013698,2]
[383810823,1757124644162,-500.0,0.00013698,2]
[383810824,1757124644172,-480.0,0.00013698,2]
[383810825,1757124644181,-500.0,0.00013698,2]
[383810826,1757124644191,-500.0,0.00013698,2]
[383810827,1757124644200,-506.74988602,0.00013698,2]
[383810828,1757124644211,-480.0,0.00013698,2]
[383810829,1757124644220,-480.0,0.00013698,2]
[383810830,1757124644232,-480.0,0.00013698,2]
[383810831,1757124644242,-242.327953,0.00013698,2]
[383810832,1757124644252,-151.0,0.00013698,2]
[383810833,1757124644262,-153.085669,0.00013698,2]
[383810834,1757124644271,-242.204758,0.00013698,2]
[383810835,1757124644280,-242.204758,0.00013698,2]
[383810836,1757124644290,-480.0,0.00013698,2]
[383810837,1757124644300,-480.0,0.00013698,2]
[383810838,1757124644310,-242.204758,0.00013698,2]
[383810839,1757124644320,-480.0,0.00013698,2]
[383810840,1757124644330,-242.204758,0.00013698,2]
[383810841,1757124644340,-480.0,0.00013698,2]
[383810842,1757124644349,-242.204758,0.00013698,2]
[383810843,1757124644359,-242.204758,0.00013698,2]
[383810844,1757124644369,-480.0,0.00013698,2]
[383810845,1757124644378,-480.0,0.00013698,2]
[383810846,1757124644387,-242.204758,0.00013698,2]
[383810847,1757124644397,-242.204758,0.00013698,2]
[383810848,1757124644406,-480.0,0.00013698,2]
[383810849,1757124644416,-500.0,0.00013698,2]
[383810850,1757124644426,-691.069749,0.00013699,2]
[383810851,1757124644435,-219.210025,0.00013699,2]
[383810852,1757124644446,-153.880679,0.00013699,2]
[383810853,1757124644456,-151.0,0.00013699,2]
[383810855,1757124644465,-151.0,0.00013699,2]
[383810857,1757124644475,-151.0,0.00013699,2]
[383810858,1757124644484,-4086.7268533,0.00013699,2]
[383810859,1757124644497,-1979.045754,0.00013699,2]
[383810860,1757124644506,-151.0,0.00013699,2]
[383810861,1757124644516,-151.0,0.00013699,2]
[383810862,1757124644526,-151.0,0.00013699,2]
[383810863,1757124644537,-151.0,0.00013699,2]
[383810864,1757124644546,-500.19224193,0.00013699,2]
[383810866,1757124644556,-500.0,0.00013699,2]
[383810867,1757124644566,-500.0,0.00013699,2]
[383810868,1757124644577,-500.48255043,0.00013699,2]
[383810869,1757124644587,-500.0,0.00013699,2]
[383810870,1757124644596,-500.0,0.00013699,2]
[383810871,1757124644605,-500.0,0.00013699,2]
[383810872,1757124644614,-500.0,0.00013699,2]
[383810873,1757124644624,-572.37676885,0.00013767,2]
[383810874,1757124644634,-2439.0,0.00013772,2]
[383810875,1757124644645,-151.0,0.000138,2]
[383810876,1757124644655,-2439.0,0.00013839,2]
[383810877,1757124644666,-300.0,0.00013869,2]
[383810878,1757124644676,-300.0,0.00013869,2]
[383810879,1757124644685,-300.0,0.00013869,2]
[383810880,1757124644695,-300.0,0.00013869,2]
[383810881,1757124644705,-300.0,0.00013869,2]
[383810882,1757124644714,-300.0,0.00013869,2]
[383810883,1757124644723,-300.0,0.00013869,2]
[383810884,1757124644733,-300.0,0.00013869,2]
[383810885,1757124644743,-300.0,0.00013869,2]
[383810886,1757124644752,-300.0,0.00013869,2]
[383810887,1757124644762,-300.0,0.00013869,2]
[383810888,1757124644771,-300.0,0.00013869,2]
[383810889,1757124644781,-300.0,0.00013869,2]
[383810890,1757124644793,-300.0,0.00013869,2]
[383810891,1757124644805,-300.0,0.00013869,2]
[383810892,1757124644816,-572.37676885,0.0001389,2]
[383810893,1757124644826,-151.0,0.000139,2]
[383810894,1757124644835,-2439.0,0.00013955,2]
[383810895,1757124644845,-203.21852024,0.00013957,2]
[383810896,1757124644855,-160.0,0.00013957,2]
[383810897,1757124644864,-160.0,0.00013957,2]
[383810898,1757124644874,-160.0,0.00013957,2]
[383810899,1757124644884,-160.0,0.00013957,2]
[383810900,1757124644895,-160.0,0.00013957,2]
[383810901,1757124644905,-160.0,0.00013958,2]
[383810902,1757124644917,-1790.5223145,0.00013961,2]
[383810903,1757124644932,-600.0,0.00013971,2]
[383810904,1757124644943,-239.65073504,0.00013972,2]
[383810905,1757124644953,-157.0,0.00013972,2]
[383810906,1757124644964,-166.19,0.00013972,2]
[383810907,1757124644975,-500.0,0.00013972,2]
[383810908,1757124644985,-480.0,0.00013972,2]
[383810909,1757124644994,-484.62897342,0.00013972,2]
[383810910,1757124645004,-480.0,0.00013972,2]
[383810911,1757124645014,-480.0,0.00013972,2]
[383810912,1757124645024,-482.49748996,0.00013972,2]
[383810913,1757124645034,-480.0,0.00013972,2]
[383810914,1757124645044,-480.0,0.00013972,2]
[383810915,1757124645055,-480.0,0.00013972,2]
[383810916,1757124645066,-481.21160543,0.00013972,2]
[383810917,1757124645075,-480.0,0.00013972,2]
[383810918,1757124645086,-480.0,0.00013972,2]
[383810919,1757124645096,-482.33827662,0.00013972,2]
[383810920,1757124645105,-241.0,0.00013972,2]
[383810921,1757124645116,-480.0,0.00013972,2]
[383810922,1757124645125,-480.0,0.00013972,2]
[383810923,1757124645135,-484.67661226,0.00013972,2]
[383810924,1757124645144,-482.37243226,0.00013972,2]
[383810925,1757124645154,-484.59056608,0.00013972,2]
[383810926,1757124645163,-498.37878167,0.00013972,2]
[383810927,1757124645173,-481.42799618,0.00013972,2]
[383810928,1757124645184,-487.34737873,0.00013972,2]
[383810929,1757124645193,-480.0,0.00013972,2]
[383810930,1757124645204,-441.63773296,0.00013972,2]
[383810931,1757124645215,-480.0,0.00013972,2]
[383810932,1757124645227,-480.0,0.00013972,2]
[383810933,1757124645237,-480.0,0.00013972,2]
[383810934,1757124645247,-485.70337573,0.00013972,2]
[383810935,1757124645257,-480.0,0.00013972,2]
[383810936,1757124645267,-480.0,0.00013972,2]
[383810937,1757124645277,-484.70768145,0.00013972,2]
[383810938,1757124645287,-483.93857904,0.00013972,2]
[383810939,1757124645296,-481.92195747,0.00013972,2]
[383810940,1757124645306,-480.0,0.00013972,2]
[383810941,1757124645316,-151.0,0.00013972,2]
[383810942,1757124645326,-482.57744752,0.00013972,2]
[383810943,1757124645339,-480.0,0.00013972,2]
[383810944,1757124645349,-480.0,0.00013972,2]
[383810945,1757124645358,-172.14938165,0.00013972,2]
[383810946,1757124645367,-480.0,0.00013972,2]
[383810947,1757124645377,-480.0,0.00013972,2]
[383810948,1757124645386,-480.0,0.00013972,2]
[383810949,1757124645397,-480.0,0.00013972,2]
[383810950,1757124645407,-480.0,0.00013972,2]
[383810951,1757124645416,-268.16342824,0.00013972,2]
[383810952,1757124645426,-480.0,0.00013972,2]
[383810954,1757124645436,-482.97597316,0.00013972,2]
[383810956,1757124645445,-480.0,0.00013972,2]
[383810957,1757124645455,-480.0,0.00013972,2]
[383810959,1757124645464,-480.0,0.00013972,2]
[383810961,1757124645474,-308.71523952,0.00013972,2]
[383810962,1757124645483,-486.72747033,0.00013972,2]
[383810964,1757124645496,-485.5863617,0.00013972,2]
[383810965,1757124645506,-480.0,0.00013972,2]
[383810966,1757124645515,-480.0,0.00013972,2]
[383810967,1757124645525,-480.0,0.00013972,2]
[383810968,1757124645535,-480.0,0.00013972,2]
[383810969,1757124645546,-484.83622505,0.00013972,2]
[383810970,1757124645556,-480.0,0.00013972,2]
[383810971,1757124645565,-486.05872859,0.00013972,2]
[383810972,1757124645576,-489.08888993,0.00013972,2]
[383810973,1757124645586,-480.0,0.00013972,2]
[383810974,1757124645596,-480.0,0.00013972,2]
[383810975,1757124645605,-172.43214868,0.00013972,2]
[383810976,1757124645615,-552.53239379,0.00013972,2]
[383810977,1757124645624,-480.0,0.00013972,2]
[383810978,1757124645634,-189.471751,0.00013972,2]
[383810979,1757124645644,-151.0,0.00013972,2]
[383810980,1757124645654,-189.471751,0.00013972,2]
[383810981,1757124645664,-480.0,0.00013972,2]
[383810982,1757124645674,-480.0,0.00013972,2]
[383810983,1757124645683,-480.0,0.00013972,2]
[383810984,1757124645692,-265.07223414,0.00013972,2]
[383810985,1757124645702,-189.471751,0.00013972,2]
[383810986,1757124645712,-151.0,0.00013972,2]
[383810987,1757124645721,-189.471751,0.00013972,2]
[383810988,1757124645731,-151.63298,0.00013972,2]
[383810989,1757124645740,-480.0,0.00013972,2]
[383810990,1757124645750,-151.0,0.00013972,2]
[383810991,1757124645759,-151.0,0.00013972,2]
[383810992,1757124645768,-151.0,0.00013972,2]
[383810993,1757124645778,-480.0,0.00013972,2]
[383810994,1757124645787,-192.89126168,0.00013972,2]
[383810995,1757124645797,-480.0,0.00013972,2]
[383810996,1757124645806,-151.0,0.00013972,2]
[383810997,1757124645815,-151.0,0.00013972,2]
[383810998,1757124645824,-480.0,0.00013972,2]
[383810999,1757124645834,-480.0,0.00013972,2]
[383811000,1757124645843,-480.0,0.00013972,2]
[383811001,1757124645852,-480.0,0.00013972,2]
[383811002,1757124645862,-397.74555341,0.00013972,2]
[383811003,1757124645871,-480.0,0.00013972,2]
[383811005,1757124645880,-480.0,0.00013972,2]
[383811006,1757124645889,-480.0,0.00013972,2]
[383811007,1757124645899,-482.78166396,0.00013972,2]
[383811008,1757124645909,-480.0,0.00013972,2]
[383811009,1757124645919,-482.67057599,0.00013972,2]
[383811010,1757124645930,-480.0,0.00013972,2]
[383811011,1757124645940,-480.0,0.00013972,2]
[383811012,1757124645950,-482.0674127,0.00013972,2]
[383811013,1757124645960,-629.57268172,0.00013972,2]
[383811014,1757124645970,-480.0,0.00013972,2]
[383811015,1757124645979,-521.6885042,0.00013972,2]
[383811016,1757124645988,-480.0,0.00013972,2]
[383811017,1757124645997,-480.0,0.00013972,2]
[383811018,1757124646007,-481.85658362,0.00013972,2]
[383811019,1757124646016,-480.0,0.00013972,2]
[383811020,1757124646025,-480.0,0.00013972,2]
[383811021,1757124646036,-481.40088777,0.00013972,2]
[383811022,1757124646045,-480.0,0.00013972,2]
[383811023,1757124646055,-480.0,0.00013972,2]
[383811024,1757124646065,-484.40695155,0.00013972,2]
[383811025,1757124646074,-480.0,0.00013972,2]
[383811026,1757124646084,-503.76295068,0.00013972,2]
[383811027,1757124646094,-480.0,0.00013972,2]
[383811028,1757124646103,-195.8400977,0.00013972,2]
[383811029,1757124646113,-480.0,0.00013972,2]
[383811030,1757124646122,-480.0,0.00013972,2]
[383811031,1757124646131,-481.20013679,0.00013972,2]
[383811032,1757124646142,-480.0,0.00013972,2]
[383811033,1757124646151,-480.0,0.00013972,2]
[383811034,1757124646161,-480.0,0.00013972,2]
[383811035,1757124646171,-480.60601053,0.00013972,2]